Cogmind - Beta 15 @@@ ROGUE MODE // 2025.08.21 @ 14:43:04 Player: shapeshifter Result: Destroyed by 47-XX0(R) with Subdweller Shrapnel Launcher Performance ------------- Evolutions (0) 0 Regions Visited (3) 600 Robots Destroyed (13) 65 Value Destroyed (252) 252 Prototype IDs (0) 0 Alien Tech Used (0) 0 Bonus (0) 0 TOTAL SCORE: 917 Bonus ------- None Cogmind --------- Core Integrity 0/250 Matter 281/300 Energy 200/200 System Corruption 0% Temperature Cool (0) Movement Rolling (130) Ox2 Location -10/Subcaves Parts ------- > --- POWER (1) -------- Subdweller Power Source > --- PROPULSION (2) --- Subdweller Monowheel > --- UTILITY (2) ------ High-capacity Storage Unit Subdweller Optics > --- WEAPON (2) ------- Light Assault Rifle > --- INVENTORY (20) --- Wheel High-capacity Matter Pod (148) SUBCON Basin (Full) Peak State ------------ > --- POWER ------------ Subdweller Power Source > --- PROPULSION ------- Subdweller Monowheel Subdweller Monowheel > --- UTILITY ---------- High-capacity Storage Unit Improved Terrain Scanner > --- WEAPON ----------- Light Assault Rifle Light Assault Rifle > --- INVENTORY -------- Ion Engine High-capacity Matter Pod Light Assault Rifle Light Assault Rifle SUBCON Basin [Rating: 30] Favorites ----------- Power Ion Engine Engine Ion Engine Propulsion Light Treads Treads Light Treads Wheel Wheel Utility High-capacity Storage Unit Device Seismic Detector Storage High-capacity Storage Unit Protection Propulsion Shielding Weapon Light Assault Rifle Energy Gun EM Pulse Gun Ballistic Gun Light Assault Rifle Build | -11 -10 -10 -10 ------- Run | Yrd Mat Min Sub Slots Evolved . | . . . . Power . | . . . . Propulsion . | . . . . Utility . | . . . . Weapon . | . . . . Parts Attached 26 | 7 5 . 14 Power 3 | 1 . . 2 Engine 3 | 1 . . 2 Core . | . . . . Reactor . | . . . . Propulsion 6 | 2 2 . 2 Treads 2 | 2 . . . Leg . | . . . . Wheel 4 | . 2 . 2 Hover . | . . . . Flight . | . . . . Utility 7 | 2 1 . 4 Device 3 | 1 . . 2 Storage 3 | 1 1 . 1 Processor . | . . . . Hackware . | . . . . Protection 1 | . . . 1 Artifact . | . . . . Weapon 10 | 2 2 . 6 Energy Gun 2 | 1 . . 1 Energy Cannon . | . . . . Ballistic Gun 8 | 1 2 . 5 Ballistic Cannon . | . . . . Launcher . | . . . . Special Weapon . | . . . . Impact Weapon . | . . . . Slashing Weapon . | . . . . Piercing Weapon . | . . . . Special Melee Weapon . | . . . . Unidentified Prototypes . | . . . . Parts Lost 6 | . . . 6 Power . | . . . . Propulsion 1 | . . . 1 Utility 1 | . . . 1 Weapon 4 | . . . 4 Highest Loss Streak 4 | . . . 4 To Critical Strikes . | . . . . Average Backups 6 | 3 8 13 6 Power . | . 1 1 . Propulsion 1 | 1 2 2 . Utility 2 | . 2 5 1 Weapon 2 | . 2 5 2 Tool/Special . | . . . . Unused Backups 3 | . 1 . 2 Power . | . . . . Propulsion 1 | . . . 1 Utility 1 | . . . 1 Weapon 1 | . 1 . . Tool/Special . | . . . . Average Slot Usage (%) 98 | . 99 100 98 Engine 14 | . 14 14 14 Treads 12 | . 16 . 12 Wheel 15 | . 11 28 15 Device 11 | . 14 14 10 Storage 14 | . 14 14 14 Protection 1 | . . . 2 Energy Gun 2 | . 7 . . Ballistic Gun 25 | . 19 28 27 Peak Build Rating 30 | 7 8 8 30 Average Rating 16 | 5 7 8 23 On Entrance 5 | . 7 8 8 Naked Turns . | . . . . Heaviest Build 49 | 15 48 48 49 Greatest Support 40 | 40 40 20 40 Greatest Overweight (x) 2 | . 2 2 2 Average Overweight (x) 1 | . . 2 1 Largest Inventory Capacity 20 | 8 20 20 20 Average Capacity 17 | 7 13 20 20 Most Carried 20 | 6 13 13 20 Average Carried 14 | 3 8 13 18 Final Capacity 20 | 8 20 20 20 Final Carried 17 | 5 13 13 17 Class Distribution -------------------- 100% | Mutant Dominant Class ---------------- Mutant | -10/Materials Mutant | -10/Mines Mutant | -10/Subcaves Resources | -11 -10 -10 -10 ----------- Run | Yrd Mat Min Sub Matter Collected 703 | 241 14 . 448 Remotely . | . . . . Salvage Created 321 | 51 63 . 207 Parts 32 | 8 8 . 16 Haulers Intercepted . | . . . . Recyclers Shooed 1 | . 1 . . Parts Field Recycled . | . . . . Retrieved Matter . | . . . . Parts Self-Destructed 15 | . . . 15 Prevented . | . . . . Kills | -11 -10 -10 -10 ------- Run | Yrd Mat Min Sub Combat Hostiles Destroyed 9 | . 3 . 6 Guns 9 | . 3 . 6 Classes Destroyed 5 | 1 2 . 2 Tunneler 3 | 3 . . . Watcher 1 | . 1 . . Swarmer 5 | . 3 . 2 Sentry 1 | . . . 1 Subdweller 3 | . . . 3 Best Kill Streak 3 | 2 3 . 2 Combat Bots Only 3 | . 3 . 2 Max Kills in Single Turn 1 | 1 1 . 1 Gunslinging . | . . . . Exploded . | . . . . Melee . | . . . . Uniques/NPCs Destroyed . | . . . . Combat | -11 -10 -10 -10 -------- Run | Yrd Mat Min Sub Hostile Shots Fired 84 | . 27 . 57 Missed 21 | . 6 . 15 Hits 63 | . 21 . 42 Projectile 63 | . 21 . 42 AOE 6 | . . . 6 Damage Taken 1270 | . 171 . 1099 Core 272 | . 36 . 236 Absorbed by Shields . | . . . . Redirected to Shielding 46 | . . . 46 Core Remaining (%) 100 | 100 . . . Volleys Fired 61 | 6 13 . 42 Largest 2 | 2 2 . 2 Hottest 60 | 60 60 . 40 Shots Fired 117 | 12 26 . 79 Gun 117 | 12 26 . 79 Cannon . | . . . . Launcher . | . . . . Special . | . . . . Kinetic 110 | 6 25 . 79 Thermal . | . . . . Explosive . | . . . . Electromagnetic 7 | 6 1 . . Robot Hit Streak 19 | 5 3 . 19 Robot Miss Streak 3 | 1 3 . 2 Penetration Max . | . . . . Secondary Targets 4 | . 2 . 2 Max Gunslinging Chain 1 | . 1 . 1 Shots Hit Robots 84 | 9 12 . 63 Core Hits 29 | 3 7 . 19 Critical Kills . | . . . . Critical Parts Destroyed 1 | . . . 1 Critical Strikes 2 | . . . 2 Destroy 2 | . . . 2 Melee Attacks . | . . . . Impact . | . . . . Slashing . | . . . . Piercing . | . . . . Sneak Attacks . | . . . . Combat Hostiles . | . . . . Follow-up Attacks . | . . . . Damage Inflicted 713 | 119 115 . 479 Guns 713 | 119 115 . 479 Cannons . | . . . . Explosions . | . . . . Melee . | . . . . Ramming . | . . . . Kinetic 645 | 51 115 . 479 Thermal . | . . . . Explosive . | . . . . Electromagnetic 68 | 68 . . . Impact . | . . . . Slashing . | . . . . Piercing . | . . . . Highest Corruption . | . . . . Average Corruption . | . . . . Corruption Purged . | . . . . Corruption Blocked . | . . . . Overload Shots . | . . . . Overflow Damage . | . . . . Projectiles . | . . . . Explosions . | . . . . Melee . | . . . . Knockbacks . | . . . . Impact . | . . . . Kinetic . | . . . . Secondary . | . . . . Self-Inflicted Damage . | . . . . Shots . | . . . . Rammed . | . . . . Targets Rammed . | . . . . Kicked . | . . . . Crushed . | . . . . Highest Temperature . | . . . . Average Temperature . | . . . . Received Heat Transfer 36 | . . . 36 Siege Activations . | . . . . Martial Activations . | . . . . Shielding Activations . | . . . . Robots Disrupted . | . . . . Combat Hostiles . | . . . . Robots Corrupted . | . . . . Combat Hostiles . | . . . . Parts Fried . | . . . . Impact Corruptions . | . . . . Robots Melted . | . . . . Combat Hostiles . | . . . . Parts Melted . | . . . . Heat Transferred . | . . . . Parts Sabotaged . | . . . . Parts Stolen . | . . . . Parts Stripped . | . . . . Power Chain Reactions . | . . . . Alert | -11 -10 -10 -10 ------- Run | Yrd Mat Min Sub Maximum Alert Level . | . . . . Low Security (%) 100 | 100 100 100 . Level 1 . | . . . . Level 2 . | . . . . Level 3 . | . . . . Level 4 . | . . . . Level 5 . | . . . . High Security . | . . . . Max Security . | . . . . Peak Influence 70 | 10 70 18 . Initial 18 | . . 18 . Average 9 | 1 14 6 . Influence Increases 166 | 15 91 . 60 Destroy 0b10 Robot/C 120 | . 60 . 60 Destroy 0b10 Robot/NC 20 | 15 5 . . Destroy Leader 12 | . 12 . . Successful Hack 14 | . 14 . . Influence Decreases 166 | 15 44 47 60 Entered New Map 29 | . . 29 . Time Decay 127 | 15 44 18 50 Lost Part 10 | . . . 10 Squads Dispatched . | . . . . Investigation . | . . . . Extermination . | . . . . Reinforcement . | . . . . Assault . | . . . . Garrison . | . . . . Intercept . | . . . . Searches Triggered . | . . . . Construction Impeded . | . . . . Haulers Reinforced . | . . . . Active Scanning Responses . | . . . . Cargo Convoy Interrupts . | . . . . Stealth | -11 -10 -10 -10 --------- Run | Yrd Mat Min Sub Distress Signals . | . . . . Communications Jammed . | . . . . Distress Signals . | . . . . Times Spotted 13 | . 5 . 8 Peak Tracking Total 3 | . 3 . 3 Tactical Retreats . | . . . . Traps | -11 -10 -10 -10 ------- Run | Yrd Mat Min Sub Traps Triggered 3 | . . . 3 Indirectly . | . . . . Trap Hack Attempts . | . . . . Triggered . | . . . . Disarmed . | . . . . Reprogrammed . | . . . . Reused . | . . . . Traps Extracted . | . . . . Installed . | . . . . Triggered . | . . . . Machines | -11 -10 -10 -10 ---------- Run | Yrd Mat Min Sub Machines Disabled . | . . . . Max in Single Turn . | . . . . Machines Repaired . | . . . . Machines Dismantled . | . . . . Machines Sabotaged . | . . . . Overloaded Fab Kills . | . . . . Hacking | -11 -10 -10 -10 --------- Run | Yrd Mat Min Sub Machines Accessed 4 | . 2 . 2 Terminals 2 | . 2 . . Fabricators . | . . . . Repair Stations . | . . . . Recycling Units . | . . . . Scanalyzers . | . . . . Garrison Access . | . . . . Total Hacks 8 | . 5 . 3 Successful 4 | . 1 . 3 Failed 4 | . 4 . . Catastrophic . | . . . . Database Lockouts . | . . . . Manual 3 | . 3 . . Terminals 5 | . 5 . . Fabricators . | . . . . Repair Stations . | . . . . Recycling Units . | . . . . Scanalyzers . | . . . . Garrison Access . | . . . . Terminal Hacks 3 | . . . 3 Record 1 | . . . 1 Open Door 1 | . . . 1 Release Object 1 | . . . 1 Fabricator Hacks . | . . . . Repair Station Hacks . | . . . . Recycling Unit Hacks . | . . . . Scanalyzer . | . . . . Garrison Access Hacks . | . . . . Unauthorized Hacks 1 | . 1 . . Terminals 1 | . 1 . . Botnet 1 | . 1 . . Fabricators . | . . . . Repair Stations . | . . . . Recycling Units . | . . . . Scanalyzers . | . . . . Garrison Access . | . . . . Data Cores Recovered . | . . . . Used . | . . . . Hacking Detections 2 | . 2 . . Full Trace Events . | . . . . Feedback Events . | . . . . Feedback Blocked . | . . . . Robot Schematics Acquired . | . . . . Robots Built . | . . . . Authchips . | . . . . Time . | . . . . Total Robot Build Rating . | . . . . Part Schematics Acquired . | . . . . Parts Built . | . . . . Authchips . | . . . . Time . | . . . . Total Part Build Rating . | . . . . Parts Repaired . | . . . . Time . | . . . . Parts Recycled . | . . . . Recycled Matter . | . . . . Retrieved Matter . | . . . . Retrieved Components . | . . . . Parts Scanalyzed . | . . . . Part Schematics Acquired . | . . . . Parts Damaged . | . . . . Bothacking | -11 -10 -10 -10 ------------ Run | Yrd Mat Min Sub Used RIF Installer . | . . . . Robots Hacked . | . . . . Non-combat . | . . . . Combat . | . . . . Robot Hacks Applied . | . . . . Relay Couplers Released . | . . . . Fabnet Peak Effective % . | . . . . Robots Rewired . | . . . . Allies Hacked . | . . . . Hacks Repelled . | . . . . Allies | -11 -10 -10 -10 -------- Run | Yrd Mat Min Sub Total Allies . | . . . . Largest Group . | . . . . Highest-Rated Group . | . . . . Highest-Rated Ally . | . . . . Total Orders . | . . . . Ally Attacks . | . . . . Total Damage . | . . . . Kills . | . . . . Allies Corrupted . | . . . . Allies Melted . | . . . . Intel | -11 -10 -10 -10 ------- Run | Yrd Mat Min Sub Active Infowar (turns) 890 | 12 256 80 542 Optics 188 | . . . 188 Terrain 251 | . . . 251 Seismic 451 | 12 256 80 103 Robot Analysis Total . | . . . . Derelict Logs Recovered . | . . . . Drone Launches . | . . . . Drone Recoveries . | . . . . Exploration | -11 -10 -10 -10 ------------- Run | Yrd Mat Min Sub Turns Passed 1206 | 147 256 80 723 Spaces Moved 659 | 72 148 68 371 Core 3 | 3 . . . Treads 270 | 69 84 . 117 Legs . | . . . . Wheels 386 | . 64 68 254 Hover . | . . . . Flight . | . . . . Fastest Speed 50 | 50 110 110 110 Average Speed 146 | 155 138 110 155 Slowest Speed 240 | 160 160 110 240 Overloaded Moves . | . . . . Propulsion Burnouts . | . . . . Robots Hopped . | . . . . Potential Cave-ins . | . . . . Cave-ins Triggered . | . . . . Exploration Rate (%) 22 | 3 36 23 28 Regions Visited 3 Branch Regions 2 Pre-discovered Areas . | . . . . Known Exits Taken . | . . . . Unknown Exits Taken 3 | 1 1 1 . Scrap Searched . | . . . . Spaces Dug . | . . . . Terrain Destroyed . | . . . . Melee . | . . . . Projectile . | . . . . AOE . | . . . . Terrain Rammed . | . . . . Walls Destroyed . | . . . . Machines Disabled . | . . . . Actions | -11 -10 -10 -10 --------- Run | Yrd Mat Min Sub Total 795 | 95 177 73 450 Wait 6 | . . 6 . Move 656 | 71 147 67 371 Hop . | . . . . Pick Up 27 | 11 9 . 7 Fast Attach 4 | 1 2 . 1 Attach 14 | 6 . . 8 Detach . | . . . . Swap 10 | . 3 . 7 Drop 17 | . 3 . 14 Fire 61 | 6 13 . 42 Melee . | . . . . Ram . | . . . . Kick . | . . . . Crush . | . . . . Escape Stasis . | . . . . Rewire . | . . . . Trap . | . . . . Miscellaneous . | . . . . Route ------- -11/Scrapyard -10/Materials -10/Mines -10/Subcaves (discovered 2 exits: [*Mat] / [*Scr]) History --------- Turn | Location | Event 9 | -11/Scrapyard | Discovered new exit (range 15) 148 | -11/Scrapyard | Entered Materials 318 | -10/Materials | Build established: Mutant 367 | -10/Materials | Discovered new exit (range 13) 404 | -10/Materials | Entered Mines 474 | -10/Mines | Discovered new exit (range 5) 484 | -10/Mines | Entered Subcaves 485 | -10/Subcaves | Approached by a straggling Scientist 620 | -10/Subcaves | Found SUBCON Basin 866 | -10/Subcaves | Shifting Twisted Machinery released Shrapnel Trap 901 | -10/Subcaves | Discovered new exit (range 9) 916 | -10/Subcaves | Shifting Twisted Machinery released Sub. Monowheel 988 | -10/Subcaves | Core integrity fell below 50% 1083 | -10/Subcaves | Scientist uncovered a shortcut to Scraptown 1194 | -10/Subcaves | Core integrity fell below 20% 1207 | -10/Subcaves | Destroyed by 47-XX0(R) with Subdweller Shrapnel Launcher Last Messages --------------- 01063_ Critical hit (Impale). 01083_ DP-QGH(c): "Hah, right again, there it is!" 01089_ DP-QGH(c) exits level. 01108_ Acquired 13 matter. 01112_ Triggered Piercing Trap. 01112_ Spikes shoot up from the floor. 01112_ Critical hit (Impale). 01112_ Lgt. Assault Rifle destroyed. 01112_ Critical hit (Impale). 01136_ Acquired 17 matter. 01140_ Acquired 8 matter. 01147_ Acquired 10 matter. 01151_ Acquired 5 matter. 01179_ Acquired 14 matter. 01186_ Subatomizers dissect the Lgt. Treads. 01192_ 47-XX0(R): "LEAVESUB!" 01195_ Sub. Monowheel destroyed. 01195_ Lgt. Assault Rifle destroyed. 01200_ Sub. Laser destroyed. Map ----- +----------------------------------------------------+ | #### ""## #??????????????????????????????????? | | ## "" #?????????????????????????????????????? | | " #### #???????????????????????????????????? | | [ &!###??? "#??????????????????????????????????? | | ! "##??????" ?????????????????????????????????? | | &"#??????"?#?????????????????????????????????? | | "# #####??????????????????????????????????????? | | ### """ #??????? ??????????????????????????????? | | #?## "" #?????? ?????????????????????????????? | | #??##" #?????## ?????????????????????????????? | | ##???# #????# #????????????????????????????? | | ?????? ##????# #???????????????????????????? | | #??#### ##?????# #??????????????????????????? | | ##?# ####??????? ???#??????##??????????????? | | ## #?????????? R ??? ??????"#??????????????? | | #??????????# #?? ?????""???????????????? | | #????? ????? ?? ????% ????????????????? | | ##### #?????# ## ???? ?????????????????? | | ##???## ? ? #?????????????????? | | ##??# ### #?????????????????? | | #?? #?## # # #???#?????????????? | | #??# ## #????????????#????? | | #?# #??????????? #????? | | ## #????# #????#?????? ##???? | | #?????## ##???#?????? ????? | | ##????## @ #????????? #??? | | ##??#???# ##???????? ???? | | # ###?#??##### ##??????? ?????? | | ## ! ###?###### ### ######## # | | ?#& ##?### ## #; #? | | ##&&#### ##### #? | | # ## "" ### " ## ####### #?? | | # """ "" % #????????????? | | # """"" #????????????? | | ## &""""" ##????????????? | | ### "####" ### # ##?????? ??????# | | ##?####""""#?## ## ###### #????????????### | | #?????##"###?# ### #???## #???####????## | | ## #????#?###?### = ""#??## ##### ####?# | | ?# #?????#????#" ="""#??# ## !#?## | | ?# ??????????# ""< ""##### #?## | | ?## ??????????# " ##?# % ### | | ??##??????????#### #####??# ## ^ | | ????????? ???????#####?????# #### | | ??????#?????##???????????#?# ##??####### ## | | ?#????????????????#????????#####??????????######## | | ??????#??????????????????????????????????#???????? | | ?????????????????????????????????????????????????? | | ?????????????????????????????????????????????????? | | ?????????????????????????????????????????????????? | +----------------------------------------------------+ Best States ------------- Heat Dissipation 25 Energy Generation 15 Energy Capacity 250 Matter Stores 300 Matter Capacity 300 Sight Range 21 Terrain Scan Range 16 Terrain Scan Density 10 Propulsion Shielding 33 Evasion (%) 40 Recoil Reduction 2 Item Schematics ----------------- None Robot Schematics ------------------ None Fabricated ------------ Nothing Repaired ---------- Nothing Alien Tech Used ----------------- None Achievements -------------- None Challenges ------------ None Game ------ Seed ThunderMassHammer Manual? 0 Play Time 00:08:08 Cumulative 176.8 hours Start 2025.08.21 @ 14:34:22 End 2025.08.21 @ 14:43:04 Sessions 1 Manual Loads 0 Difficulty Rogue Special Mode None Game No. 281 Rogue 281 Adventurer 0 Explorer 0 Win Type - Total 3 Types 2/0/1/0/0/0/0/0/0/0 Lore% 78 Gallery% 74 Achievement% 54 Wizard Run 0 Options --------- Layout 1 ASCII 0 Keyboard 0 Movement Mouse Keybinds 0 Fullscreen 1 Font 24/Smallcaps Map View 50x40 Zoom Use 0% Tactical HUD 1 Map Filters NONE Filters NONE Steam 1 RUN: 8bd4feab-72be-493c-9c6f-22940130b954